Cogmind - Beta 16 @@@ ROGUE MODE // 2025.12.26 @ 13:07:23 Player: PE-P51 Result: Destroyed by as-93371 with Assembled Rifle Performance ------------- Evolutions (0) 0 Regions Visited (4) 800 Robots Destroyed (30) 150 Value Destroyed (613) 613 Prototype IDs (25) 500 Alien Tech Used (0) 0 Bonus (381) 381 TOTAL SCORE: 2444 Bonus ------- Follower Combat Kills 101 Aligned with FarCom 300 Friendly Fire -20 Cogmind --------- Core Integrity 0/250 Matter 300/300 Energy 125/125 System Corruption 0% Temperature Hot (220) Movement Rolling (175) Ox5 Location -9/Mines Parts ------- > --- POWER (1) -------- Light Ion Engine > --- PROPULSION (2) --- Compact Wheel > --- UTILITY (2) ------ Huge Storage Unit Launcher Guidance Computer > --- WEAPON (2) ------- Beam Cannon Beam Cannon > --- INVENTORY (25) --- Fission Core Compact Wheel Compact Wheel Compact Wheel Flight Unit Flight Unit Flight Unit Flight Unit Flight Unit Heat Sink Improved Heat Sink Disposable Heat Sink High-capacity Storage Unit High-capacity Storage Unit Transport Network Coupler Chronowheel Grenade Launcher Field Lobotomy Kit (5) Mining Laser Flail Peak State ------------ > --- POWER ------------ Ion Engine > --- PROPULSION ------- Light Treads Light Treads > --- UTILITY ---------- Huge Storage Unit Light Armor Plating > --- WEAPON ----------- Heavy Assault Rifle Heavy Assault Rifle > --- INVENTORY -------- Light Ion Engine Light Ion Engine Light Treads Light Treads Light Treads Flight Unit Flight Unit Flight Unit Flight Unit Flight Unit Heat Sink Improved Heat Sink Disposable Heat Sink High-capacity Storage Unit High-capacity Storage Unit Transport Network Coupler Chronowheel Beam Cannon Beam Cannon Assault Rifle Heavy Assault Rifle Grenade Launcher Field Lobotomy Kit Mining Laser Flail [Rating: 14] Favorites ----------- Power Ion Engine Engine Ion Engine Propulsion Light Treads Treads Light Treads Leg Aluminum Leg Wheel Compact Wheel Utility Huge Storage Unit Storage Huge Storage Unit Processor Launcher Guidance Computer Protection Light Armor Plating Weapon Heavy Assault Rifle Energy Gun EM Pulse Gun Energy Cannon Beam Cannon Ballistic Gun Heavy Assault Rifle Launcher Grenade Launcher Build | -11 -10 -10 -10 -9 ------- Run | Yrd Mat Min Exi Min Slots Evolved . | . . . . . Power . | . . . . . Propulsion . | . . . . . Utility . | . . . . . Weapon . | . . . . . Parts Attached 28 | . 16 2 . 10 Power 3 | . 1 . . 2 Engine 3 | . 1 . . 2 Core . | . . . . . Reactor . | . . . . . Propulsion 10 | . 6 1 . 3 Treads 5 | . 2 1 . 2 Leg 4 | . 4 . . . Wheel 1 | . . . . 1 Hover . | . . . . . Flight . | . . . . . Utility 6 | . 4 1 . 1 Device . | . . . . . Storage 3 | . 3 . . . Processor 1 | . . . . 1 Hackware . | . . . . . Protection 2 | . 1 1 . . Artifact . | . . . . . Weapon 9 | . 5 . . 4 Energy Gun . | . . . . . Energy Cannon 2 | . . . . 2 Ballistic Gun 6 | . 4 . . 2 Ballistic Cannon . | . . . . . Launcher 1 | . 1 . . . Special Weapon . | . . . . . Impact Weapon . | . . . . . Slashing Weapon . | . . . . . Piercing Weapon . | . . . . . Special Melee Weapon . | . . . . . Unidentified Prototypes . | . . . . . Parts Lost 14 | . 2 . . 12 Power 2 | . . . . 2 Propulsion 5 | . . . . 5 Utility 2 | . 1 . . 1 Weapon 5 | . 1 . . 4 Highest Loss Streak 10 | . 1 . . 10 To Critical Strikes . | . . . . . Average Backups 21 | . 17 24 25 20 Power 1 | . 1 2 2 1 Propulsion 7 | . 6 8 8 6 Utility 5 | . 3 6 6 6 Weapon 6 | . 6 8 7 4 Tool/Special . | . . . . . Unused Backups 28 | . 5 4 1 18 Power 1 | . . . . 1 Propulsion 13 | . . 4 1 8 Utility 7 | . 2 . . 5 Weapon 5 | . 3 . . 2 Tool/Special 2 | . . . . 2 Average Slot Usage (%) 95 | . 92 97 100 93 Engine 14 | . 14 14 14 14 Treads 21 | . 10 28 28 21 Leg 5 | . 17 . . . Storage 14 | . 14 14 14 14 Processor 1 | . . . . 6 Protection 9 | . 6 12 14 6 Energy Gun 1 | . 3 . . . Energy Cannon 2 | . . . . 14 Ballistic Gun 18 | . 24 20 14 7 Launcher 5 | . . 7 14 6 Peak Build Rating 14 | . 10 12 13 14 Average Rating 10 | . 9 11 11 12 On Entrance 9 | 6 6 10 11 13 Avg Prop Armor Cover (%) 13 | . . . . 13 Naked Turns . | . . . . . Heaviest Build 94 | 11 91 94 94 94 Greatest Support 40 | 20 40 40 40 40 Greatest Overweight (x) 5 | . 2 2 2 5 Average Overweight (x) 1 | . 1 2 2 2 Largest Inventory Capacity 25 | . 25 25 25 25 Average Capacity 23 | . 19 25 25 25 Most Carried 25 | . 23 25 25 25 Average Carried 21 | . 17 24 24 20 Final Capacity 25 | 8 25 25 25 25 Final Carried 25 | 6 23 25 25 20 Class Distribution -------------------- 100% | Mutant Dominant Class ---------------- Mutant | -10/Materials Mutant | -10/Mines Mutant | -10/Exiles Mutant | -9/Mines Resources | -11 -10 -10 -10 -9 ----------- Run | Yrd Mat Min Exi Min Matter Collected 697 | 200 124 245 . 128 Remotely . | . . . . . Salvage Created 804 | . 434 269 . 101 Parts 51 | . 29 19 . 3 Haulers Intercepted 2 | . 2 . . . Recyclers Shooed 3 | . 1 1 . 1 Parts Field Recycled . | . . . . . Retrieved Matter . | . . . . . Parts Self-Destructed . | . . . . . Prevented . | . . . . . Parts Restored . | . . . . . Kills | -11 -10 -10 -10 -9 ------- Run | Yrd Mat Min Exi Min Combat Hostiles Destroyed 26 | . 12 9 . 5 Guns 16 | . 9 6 . 1 Cannons 4 | . . . . 4 AOE 6 | . 3 3 . . Classes Destroyed 9 | . 4 3 . 2 Worker 2 | . . 2 . . Tunneler 1 | . . 1 . . Hauler 2 | . 2 . . . Recycler 1 | . . 1 . . Watcher 1 | . 1 . . . Swarmer 12 | . 6 6 . . Grunt 9 | . 6 3 . . Demolisher 2 | . . . . 2 Assembled 3 | . . . . 3 Best Kill Streak 4 | . 3 4 . 2 Combat Bots Only 3 | . 3 3 . 2 Max Kills in Single Turn 4 | . 2 4 . 1 Gunslinging . | . . . . . Exploded 3 | . 2 3 . . Melee . | . . . . . Uniques/NPCs Destroyed . | . . . . . Combat | -11 -10 -10 -10 -9 -------- Run | Yrd Mat Min Exi Min Hostile Shots Fired 114 | . 39 40 . 35 Missed 29 | . 13 15 . 1 Hits 85 | . 26 25 . 34 Melee 3 | . . . . 3 Projectile 82 | . 26 25 . 31 AOE 27 | . . . . 27 Critical Strikes 3 | . 2 1 . . Part Disruptions 1 | . . . . 1 Damage Taken 2010 | . 397 320 . 1293 Core 255 | . 57 23 . 175 Absorbed by Shields . | . . . . . Regen/Repaired (Parts) 2 | . 2 . . . Core Remaining (%) 100 | 100 . . . . Volleys Fired 83 | . 42 17 . 24 Largest 2 | . 2 2 . 2 Hottest 120 | . 60 46 . 120 Shots Fired 159 | . 78 33 . 48 Gun 127 | . 74 32 . 21 Cannon 27 | . . . . 27 Launcher 5 | . 4 1 . . Special . | . . . . . Kinetic 104 | . 51 32 . 21 Thermal 27 | . . . . 27 Explosive 5 | . 4 1 . . Electromagnetic 23 | . 23 . . . Robot Hit Streak 9 | . 9 7 . 8 Robot Miss Streak 3 | . 2 2 . 3 Penetration Max . | . . . . . Secondary Targets 2 | . 2 . . . Max Gunslinging Chain 1 | . 1 . . . Shots Hit Robots 101 | . 52 18 . 31 Core Hits 58 | . 29 16 . 13 Critical Kills 1 | . . 1 . . Critical Parts Destroyed . | . . . . . Critical Strikes 2 | . 1 1 . . Destroy 1 | . . 1 . . Corrupt 1 | . 1 . . . Melee Attacks . | . . . . . Impact . | . . . . . Slashing . | . . . . . Piercing . | . . . . . Sneak Attacks . | . . . . . Combat Hostiles . | . . . . . Follow-up Attacks . | . . . . . Damage Inflicted 1890 | . 964 447 . 479 Guns 1156 | . 600 301 . 255 Cannons 224 | . . . . 224 Explosions 414 | . 310 104 . . Melee . | . . . . . Ramming 96 | . 54 42 . . Kinetic 902 | . 346 301 . 255 Thermal 319 | . 95 . . 224 Explosive 319 | . 215 104 . . Electromagnetic 254 | . 254 . . . Impact . | . . . . . Slashing . | . . . . . Piercing . | . . . . . Highest Corruption . | . . . . . Average Corruption . | . . . . . Corruption Purged . | . . . . . Corruption Blocked . | . . . . . Overload Shots . | . . . . . Overflow Damage 34 | . 34 . . . Projectiles . | . . . . . Explosions 34 | . 34 . . . Melee . | . . . . . Knockbacks . | . . . . . Impact . | . . . . . Kinetic . | . . . . . Secondary . | . . . . . Self-Inflicted Damage 103 | . 103 . . . Shots 4 | . 4 . . . Rammed 6 | . 3 3 . . Targets Rammed 19 | . 13 6 . . Kicked 10 | . 10 . . . Crushed 3 | . . 3 . . Highest Temperature 220 | . 169 9 . 220 Average Temperature 53 | . 39 4 . 79 Received Heat Transfer 291 | . 141 90 . 60 Siege Activations . | . . . . . Martial Activations . | . . . . . Shielding Activations . | . . . . . Robots Disrupted . | . . . . . Combat Hostiles . | . . . . . Robots Corrupted 1 | . 1 . . . Combat Hostiles . | . . . . . Parts Fried 1 | . 1 . . . Impact Corruptions . | . . . . . Robots Melted . | . . . . . Combat Hostiles . | . . . . . Parts Melted . | . . . . . Heat Transferred 631 | . 150 . . 481 Parts Sabotaged . | . . . . . Parts Stolen . | . . . . . Parts Stripped . | . . . . . Power Chain Reactions 2 | . 2 . . . Alert | -11 -10 -10 -10 -9 ------- Run | Yrd Mat Min Exi Min Maximum Alert Level . | . . . . . Low Security (%) 100 | . 100 100 . 100 Level 1 . | . . . . . Level 2 . | . . . . . Level 3 . | . . . . . Level 4 . | . . . . . Level 5 . | . . . . . High Security . | . . . . . Max Security . | . . . . . Peak Influence 96 | . 96 87 . 30 Initial . | . . . . . Average 12 | . 17 13 . . Influence Increases 779 | . 393 336 . 50 Destroy 0b10 Robot/C 520 | . 240 240 . 40 Destroy 0b10 Robot/NC 35 | . 15 20 . . Destroy Leader 106 | . 56 40 . 10 Allied During Kill 13 | . . 13 . . Successful Hack 40 | . 40 . . . Disable Machine 30 | . 15 15 . . Destroy Structure 35 | . 27 8 . . Influence Decreases 779 | . 393 336 . 50 Time Decay 750 | . 376 336 . 38 Lost Part 29 | . 17 . . 12 Squads Dispatched 2 | . 2 . . . Investigation 1 | . 1 . . . Extermination . | . . . . . Reinforcement 1 | . 1 . . . Assault . | . . . . . Garrison . | . . . . . Intercept . | . . . . . Searches Triggered . | . . . . . Construction Impeded . | . . . . . Haulers Reinforced . | . . . . . Active Scanning Responses . | . . . . . Cargo Convoy Interrupts . | . . . . . Stealth | -11 -10 -10 -10 -9 --------- Run | Yrd Mat Min Exi Min Distress Signals 4 | . 4 . . . Communications Jammed . | . . . . . Distress Signals . | . . . . . Times Spotted 44 | . 23 12 . 9 Peak Tracking Total 12 | . 4 3 . 12 Tactical Retreats 2 | . . . . 2 Traps | -11 -10 -10 -10 -9 ------- Run | Yrd Mat Min Exi Min Traps Triggered . | . . . . . Indirectly . | . . . . . Trap Hack Attempts . | . . . . . Triggered . | . . . . . Disarmed . | . . . . . Reprogrammed . | . . . . . Reused . | . . . . . Traps Extracted . | . . . . . Installed . | . . . . . Triggered . | . . . . . Machines | -11 -10 -10 -10 -9 ---------- Run | Yrd Mat Min Exi Min Machines Disabled 3 | . 1 2 . . Max in Single Turn 1 | . 1 1 . . Machines Repaired . | . . . . . Machines Dismantled . | . . . . . Machines Sabotaged . | . . . . . Overloaded Fab Kills . | . . . . . Hacking | -11 -10 -10 -10 -9 --------- Run | Yrd Mat Min Exi Min Machines Accessed 10 | . 9 . 1 . Terminals 6 | . 6 . . . Fabricators . | . . . . . Repair Stations 1 | . 1 . . . Recycling Units 2 | . 2 . . . Scanalyzers . | . . . . . Garrison Access . | . . . . . Total Hacks 31 | . 30 . 1 . Successful 13 | . 12 . 1 . Failed 18 | . 18 . . . Catastrophic 2 | . 2 . . . Database Lockouts . | . . . . . Manual 14 | . 13 . 1 . Terminals 16 | . 16 . . . Fabricators . | . . . . . Repair Stations 5 | . 5 . . . Recycling Units 9 | . 9 . . . Scanalyzers . | . . . . . Garrison Access . | . . . . . Terminal Hacks 8 | . 7 . 1 . Robot Analysis 5 | . 5 . . . Prototype ID Bank 1 | . 1 . . . Hauler Manifests 1 | . 1 . . . Proto ID Catalog 1 | . . . 1 . Fabricator Hacks . | . . . . . Repair Station Hacks 3 | . 3 . . . Scan Component 2 | . 2 . . . Repair 1 | . 1 . . . Recycling Unit Hacks 1 | . 1 . . . Retrieve Components 1 | . 1 . . . Scanalyzer . | . . . . . Garrison Access Hacks . | . . . . . Unauthorized Hacks 1 | . 1 . . . Terminals 1 | . 1 . . . Operators 1 | . 1 . . . Fabricators . | . . . . . Repair Stations . | . . . . . Recycling Units . | . . . . . Scanalyzers . | . . . . . Garrison Access . | . . . . . Data Cores Recovered . | . . . . . Used . | . . . . . Hacking Detections 8 | . 8 . . . Full Trace Events 1 | . 1 . . . Feedback Events . | . . . . . Feedback Blocked . | . . . . . Robot Schematics Acquired . | . . . . . Robots Built . | . . . . . Authchips . | . . . . . Time . | . . . . . Total Robot Build Rating . | . . . . . Part Schematics Acquired . | . . . . . Parts Built . | . . . . . Authchips . | . . . . . Time . | . . . . . Total Part Build Rating . | . . . . . Part Studies Acquired . | . . . . . Parts Repaired 1 | . 1 . . . Time 36 | . 36 . . . Parts Recycled . | . . . . . Recycled Matter . | . . . . . Retrieved Matter . | . . . . . Retrieved Components 6 | . 6 . . . Parts Scanalyzed . | . . . . . Part Schematics Acquired . | . . . . . Parts Damaged . | . . . . . Bothacking | -11 -10 -10 -10 -9 ------------ Run | Yrd Mat Min Exi Min Used RIF Installer . | . . . . . Robots Hacked . | . . . . . Non-combat . | . . . . . Combat . | . . . . . Robot Hacks Applied . | . . . . . Relay Couplers Released . | . . . . . Fabnet Peak Effective % . | . . . . . Robots Rewired . | . . . . . Allies Hacked . | . . . . . Hacks Repelled . | . . . . . Allies | -11 -10 -10 -10 -9 -------- Run | Yrd Mat Min Exi Min Total Allies 2 | . . 2 . . Largest Group 2 | . . 2 1 . Highest-Rated Group 41 | . . 41 31 . Highest-Rated Ally 31 | . . 31 31 . Total Orders . | . . . . . Ally Attacks 13 | . . 13 . . Total Damage 186 | . . 186 . . Kills 3 | . . 3 . . Allies Corrupted . | . . . . . Allies Melted . | . . . . . Intel | -11 -10 -10 -10 -9 ------- Run | Yrd Mat Min Exi Min Active Infowar (turns) . | . . . . . Robot Analysis Total 5 | . 5 . . . Derelict Logs Recovered 2 | . . 2 . . Drone Launches . | . . . . . Drone Recoveries . | . . . . . Exploration | -11 -10 -10 -10 -9 ------------- Run | Yrd Mat Min Exi Min Turns Passed 6278 | . 2161 2242 704 1171 Spaces Moved 2030 | 1 823 676 220 310 Core . | . . . . . Treads 1408 | . 237 676 220 275 Legs 587 | 1 586 . . . Wheels 35 | . . . . 35 Hover . | . . . . . Flight . | . . . . . Fastest Speed 120 | 120 120 320 320 175 Average Speed 287 | 120 229 320 320 349 Slowest Speed 480 | 120 320 320 320 480 Overloaded Moves . | . . . . . Propulsion Burnouts . | . . . . . Robots Hopped . | . . . . . Potential Cave-ins . | . . . . . Cave-ins Triggered . | . . . . . Exploration Rate (%) 63 | 2 98 100 60 56 Regions Visited 4 Branch Regions 3 Pre-discovered Areas 1 | . . 1 . . Known Exits Taken . | . . . . . Unknown Exits Taken 4 | 1 1 1 1 . Scrap Searched 2 | . . 1 . 1 Spaces Dug 4 | . 4 . . . Terrain Destroyed 32 | . 24 8 . . Melee . | . . . . . Projectile . | . . . . . AOE 32 | . 24 8 . . Terrain Rammed . | . . . . . Walls Destroyed . | . . . . . Machines Disabled . | . . . . . Actions | -11 -10 -10 -10 -9 --------- Run | Yrd Mat Min Exi Min Total 2303 | . 1014 716 223 350 Wait 90 | . 90 . . . Move 2026 | . 822 675 219 310 Hop . | . . . . . Pick Up 35 | . 21 8 2 4 Fast Attach 4 | . 1 1 . 2 Attach 10 | . 1 . . 9 Detach . | . . . . . Swap 17 | . 14 2 . 1 Drop 19 | . 10 7 2 . Fire 83 | . 42 17 . 24 Melee . | . . . . . Ram . | . . . . . Kick 10 | . 10 . . . Crush 9 | . 3 6 . . Escape Stasis . | . . . . . Rewire . | . . . . . Trap . | . . . . . Miscellaneous . | . . . . . Route ------- -11/Scrapyard -10/Materials (discovered 6 exits: [*Mat x3] / [*Min x2] / [*Sub]) -10/Mines (discovered 4 exits: [*Mat x2] / *Exi / [*Sub]) -10/Exiles (discovered 2 exits: [*Min x2]) -9/Mines History --------- Turn | Location | Event 1 | -11/Scrapyard | Discovered new exit (range 0) 1 | -11/Scrapyard | Entered Materials 187 | -10/Materials | Discovered new exit (range 7) 300 | -10/Materials | Build established: Mutant 694 | -10/Materials | Discovered new exit (range 15) 813 | -10/Materials | Discovered new exit (range 5) 911 | -10/Materials | Discovered new exit (range 16) 1370 | -10/Materials | Discovered new exit (range 8) 1727 | -10/Materials | Repaired Corrupted Flight Unit 1817 | -10/Materials | Discovered new exit (range 5) 2162 | -10/Materials | Entered Mines 2248 | -10/Mines | Discovered new exit (range 7) 2682 | -10/Mines | Discovered new exit (range 8) 2798 | -10/Mines | Learned 2 Materials zone layouts 2992 | -10/Mines | Learned location of Zion (-6) 3358 | -10/Mines | Discovered new exit (range 6) 3591 | -10/Mines | Deemed a non-threat by the Exiles lab entrance 3595 | -10/Mines | Discovered new exit (range 5) 4404 | -10/Mines | Entered Exiles 4404 | -10/Exiles | Accompanied by 1 ally 4434 | -10/Exiles | Led the pair of lost Derelicts to a safe place 4446 | -10/Exiles | Discovered new exit (range 15) 4484 | -10/Exiles | Met 8R-AWN 4539 | -10/Exiles | Met EX-HEX 4625 | -10/Exiles | Met EX-BIN 4664 | -10/Exiles | Aligned with FarCom system 4667 | -10/Exiles | Given EX-Vault access code 4744 | -10/Exiles | Opened EX-Vault 4767 | -10/Exiles | Found Field Lobotomy Kit 4784 | -10/Exiles | Found Chronowheel 4855 | -10/Exiles | Warned to stay clear of 0b10 Research branches 4876 | -10/Exiles | Exiles lab attacked by MAIN.C 5070 | -10/Exiles | Discovered new exit (range 10) 5108 | -10/Exiles | Stole two prototypes: Chronowheel, Field Lobotomy Kit 5108 | -10/Exiles | Entered Mines 5593 | -9/Mines | Assembled infested the area 5598 | -9/Mines | Assisted by a Guerilla fighting off Assembled 5646 | -9/Mines | Core integrity fell below 50% 5668 | -9/Mines | Core integrity fell below 20% 5715 | -9/Mines | Lost 10 parts (2p3n1u4w) 6279 | -9/Mines | Destroyed by as-93371 with Assembled Rifle Last Messages --------------- 05776_ as-27737 destroyed. 05776_ K-01 Serf collects debris. 05779_ Acquired 11 matter. 05784_ The unstable cave ceiling collapses. 05787_ K-01 Serf collects debris. 05803_ The unstable cave ceiling collapses. 06033_ Acquired 23 matter. 06120_ Acquired 26 matter. 06180_ U-05 Engineer lays Concrete. 06186_ U-05 Engineer destroyed. 06201_ Acquired Com. Wheel. 06213_ Acquired Fission Core. 06216_ Acquired Com. Wheel. 06217_ Acquired 53 matter. 06221_ Acquired Com. Wheel. 06225_ Acquired 15 matter. 06229_ R-06 Scavenger system terminally corrupted. 06230_ Acquired Com. Wheel. 06263_ Lgt. Treads destroyed. 06266_ as-97486 destroyed. Map ----- +----------------------------------------------------+ | #??????????????????# #????????????##% ## | | #??????????????????# #??????????##?# #### | | #??????????????????# #?????????? #### #??## | | ##?????????????????# #????????? #### ##???## | | #?????????????????# ####?????? #?# ##?????### | | #?????????????????# #?????? #?# #????????? | | #?????????????????### #?????# % #?# #????????? | | ##??????????????????# #?#### %=####%#????????? | | ##?????????????##### ### ! !%%!!% ????????? | | ##???????????## # ## !% =*=%!= ?????????? | | #??????????## # = !=*#?##?????????? | | ##????????## %! =!#????????????? | | ###????????# ! |%=#?????????????? | | # #????????# ##?????????????? | | ### #????????## #####??????????????? | | ## #?????????### ## !*%##??????????????????? | | ## #???????????####?## ! %#???????????????????? | | ####???????????????### *#???????????????????? | | ###??????##??????### !! #???????????????????? | | %##?????? #####??# =%%=##???????????????????? | | #?????? ##### % #????????????????????? | | #?????? # |% #????????????????????? | | % #????? # ! #????????????????????? | | =%##???# !*| #????????????????????? | | ##?# **= =!% =!= < ##????????????????????? | | # # =*|=! =!|##%##a@##?????????????????????? | | ## %=% !%# *?# ##??????????????????????? | | ### ! ##!# ?# #???????????????????????? | | ###? #??#%#???????????????????????? | | ####?? ?# #%#########???????????????? | | ##### # %#????#??# ????????? | | #????### %??????######### ####???????????????? | | #???????# #??????????????????????????????????? | | #????????######??????????????????????????????????? | | #????????????????????????????????????????????????? | | #????????????????????????????????????????????????? | | #????????????????????????????????????????????????? | | ?????????????????????????????????????????????????? | | ?????????????????????????????????????????????????? | | ?????????????????????????????????????????????????? | | ?????????????????????????????????????????????????? | | ?????????????????????????????????????????????????? | | ?????????????????????????????????????????????????? | | ?????????????????????????????????????????????????? | | ?????????????????????????????????????????????????? | | ?????????????????????????????????????????????????? | | ?????????????????????????????????????????????????? | | ?????????????????????????????????????????????????? | | ?????????????????????????????????????????????????? | | ?????????????????????????????????????????????????? | +----------------------------------------------------+ Best States ------------- Heat Dissipation 25 Energy Generation 10 Energy Capacity 250 Matter Stores 300 Matter Capacity 300 Sight Range 16 Terrain Scan Density 10 Armor Coverage 225 Evasion (%) 55 Launcher Accuracy 20 Recoil Reduction 2 Item Schematics ----------------- None Robot Schematics ------------------ None Fabricated ------------ Nothing Repaired ---------- Flight Unit | 90% | -10/Materials | Corrupted Studied --------- None Alien Tech Used ----------------- None Achievements -------------- None Challenges ------------ None Game ------ Seed GammaScanSabre Manual? 0 Play Time 00:43:54 Cumulative 232.6 hours Start 2025.12.25 @ 17:18:32 End 2025.12.26 @ 13:07:23 Sessions 3 Manual Loads 0 Difficulty Rogue Special Mode None Game No. 315 Rogue 314 Adventurer 1 Explorer 0 Win Type - Total 2 Types 1/0/0/1/0/0/0/0/0/0 Lore% 69 Gallery% 63 Achievement% 55 Wizard Run 0 Options --------- Layout 0 ASCII 0 Keyboard 0 Movement Numpad Keybinds 0 Fullscreen 1 Font 24/Smallcaps Map View 76x50 Zoom Use 0% Tactical HUD 1 Map Filters NONE Filters NONE Steam 1 RUN: 41a4c9c7-1420-4680-bc19-821d46e45662